bitfinex-derivatives/quotes_BTCF0:USTF0_20250208
["timestamp","ask_amount","ask_price","bid_price","bid_amount"]
[1739028855292,0.01304247,95829.0,95828.0,1.09662778]
[1739028855597,0.01304247,95829.0,95828.0,1.09562778]
[1739028855598,0.00404247,95829.0,95828.0,1.09562778]
[1739028855791,0.01304247,95829.0,95828.0,1.09662778]
[1739028856190,0.09754777,95838.0,95837.0,0.2086775]
[1739028856391,0.09754777,95847.0,95837.0,1.01698679]
[1739028856689,0.09754777,95847.0,95837.0,0.44072]
[1739028856896,0.09754777,95847.0,95846.0,0.57626679]
[1739028857198,0.00925308,95850.0,95848.0,0.2086536]
[1739028857387,0.00925308,95850.0,95848.0,0.78492039]
[1739028857795,0.09754777,95856.0,95854.0,0.2086396]
[1739028857796,0.3100808,95855.0,95854.0,0.2086396]
[1739028857991,0.3100808,95855.0,95854.0,0.6493196]
[1739028858302,0.3100808,95855.0,95854.0,1.22558639]
[1739028858492,0.3100808,95855.0,95854.0,3.86478639]
[1739028859397,0.3100808,95855.0,95854.0,4.22558639]
[1739028859597,0.3100808,95855.0,95854.0,1.22558639]
[1739028860395,0.00012,95860.0,95857.0,0.2086319]
[1739028860598,0.00012,95860.0,95859.0,0.78489639]
[1739028860899,4e-05,95862.0,95861.0,0.2086253]
[1739028861195,4e-05,95862.0,95861.0,0.78489209]
[1739028862189,4e-05,95862.0,95861.0,3.65614679]
[1739028862596,4e-05,95862.0,95861.0,0.65614679]
[1739028863104,0.00204,95862.0,95861.0,0.65746679]
[1739028863806,0.00204,95862.0,95861.0,0.65846679]
[1739028864299,1.04696659,95862.0,95824.0,0.3608]
[1739028864602,0.3608,95840.0,95839.0,1e-08]
[1739028865000,0.569471,95840.0,95839.0,1e-08]
[1739028866001,0.569471,95840.0,95839.0,0.00100001]
[1739028866207,0.57155781,95840.0,95839.0,0.00200001]
[1739028866407,0.36288681,95840.0,95839.0,0.00200001]
[1739028866602,0.36288681,95840.0,95839.0,0.00100001]
[1739028866803,0.37188681,95840.0,95839.0,0.00200001]
[1739028866994,0.38088681,95840.0,95839.0,0.00200001]
[1739028867197,0.39051607,95840.0,95839.0,0.00200001]
[1739028867806,0.39051607,95840.0,95839.0,0.4638668]
[1739028868007,0.38088681,95840.0,95839.0,0.4638668]
[1739028869207,0.38088681,95840.0,95839.0,0.4628668]
[1739028869407,0.38088681,95840.0,95839.0,0.4638668]
[1739028870108,0.02008681,95840.0,95839.0,0.4638668]
[1739028870502,0.02008681,95840.0,95839.0,0.4628668]
[1739028870503,0.01108681,95840.0,95839.0,0.4628668]
[1739028870703,0.02008681,95840.0,95839.0,0.4638668]
[1739028870906,0.01108681,95840.0,95839.0,0.4628668]
[1739028871103,0.02008681,95840.0,95839.0,0.8246668]
[1739028871410,0.02008681,95840.0,95839.0,0.4638668]
[1739028873505,0.37188681,95840.0,95839.0,0.001]
[1739028873711,0.1733,95839.0,95800.0,0.1]
[1739028873911,0.3608,95810.0,95800.0,0.1]
[1739028874206,0.3608,95810.0,95801.0,0.36236535]
[1739028874409,0.3608,95810.0,95809.0,0.0322368]
[1739028875707,0.09754777,95818.0,95809.0,0.3576368]
[1739028875907,0.09754777,95818.0,95817.0,0.0322368]
[1739028876108,0.00015656,95819.0,95817.0,0.0322368]
[1739028876306,0.00224382,95819.0,95818.0,0.0322368]
[1739028877410,0.01024382,95819.0,95818.0,0.0322368]
[1739028878511,0.01024382,95819.0,95818.0,0.0332368]
[1739028878706,0.01824382,95819.0,95818.0,0.0332368]
[1739028878905,0.01024382,95819.0,95818.0,0.0332368]
[1739028879206,0.01824382,95819.0,95818.0,0.2429557]
[1739028879902,0.37904382,95819.0,95818.0,0.0342368]
[1739028880415,0.01824382,95819.0,95818.0,0.0342368]
[1739028881619,0.01824382,95819.0,95818.0,0.3950368]
[1739028882207,0.45834777,95830.0,95819.0,0.0322368]
[1739028882402,0.45834777,95830.0,95829.0,0.0322368]
[1739028882599,0.3608,95830.0,95829.0,0.1149968]
[1739028884612,0.3608,95830.0,95829.0,3.1149968]
[1739028884817,0.3738,95830.0,95829.0,3.1169968]
[1739028885514,0.013,95830.0,95829.0,3.1169968]
[1739028885820,0.009,95830.0,95829.0,3.1169968]
[1739028886116,0.004,95830.0,95829.0,3.1169968]
[1739028886317,0.004,95830.0,95829.0,3.1159968]
[1739028886521,0.004,95830.0,95829.0,3.1169968]
[1739028887619,0.009,95830.0,95829.0,3.1169968]
[1739028887916,0.009,95830.0,95829.0,3.4777968]
[1739028888112,0.00013,95835.0,95829.0,3.4767968]
[1739028888314,0.013,95830.0,95829.0,3.44556]
[1739028888716,0.013,95830.0,95829.0,3.4777968]
[1739028889207,0.009,95830.0,95829.0,3.4757968]
[1739028889412,0.009,95830.0,95829.0,3.4777968]
[1739028891014,0.009,95830.0,95829.0,3.3940368]
[1739028891221,0.013,95830.0,95829.0,3.3950368]
[1739028891520,0.004,95830.0,95829.0,3.3940368]
[1739028891722,0.004,95830.0,95829.0,3.0332368]
[1739028892019,0.00013,95835.0,95829.0,3.0322368]
[1739028892223,0.004,95830.0,95829.0,0.001]
[1739028892615,0.004,95830.0,95829.0,3.0332368]
[1739028893722,0.004,95830.0,95829.0,0.001]
[1739028895011,0.004,95830.0,95829.0,0.002]
[1739028895709,0.013,95830.0,95829.0,0.002]
[1739028898019,0.013,95830.0,95829.0,0.0342368]
[1739028900617,0.013,95830.0,95829.0,0.8064768]
[1739028901831,0.00078,95833.0,95829.0,0.8064768]
[1739028902017,0.09770433,95839.0,95832.0,0.0322368]
[1739028902221,0.09770433,95839.0,95829.0,0.77424]
[1739028902222,0.00015656,95839.0,95838.0,0.6017121]
[1739028902425,0.09754777,95850.0,95841.0,0.2086688]
[1739028902622,0.09754777,95850.0,95841.0,0.2409056]
[1739028903223,0.00064,95847.0,95841.0,0.2409056]
[1739028904318,0.00904,95842.0,95841.0,0.2419056]
[1739028904522,0.09754777,95850.0,95849.0,0.2086514]
[1739028904726,0.09754777,95850.0,95849.0,0.2408882]
[1739028905025,0.09754777,95859.0,95855.0,0.2086366]
[1739028905330,0.09754777,95865.0,95857.0,0.0322368]
[1739028905720,0.00013,95863.0,95857.0,0.0322368]
[1739028905920,0.00013,95863.0,95856.0,0.2086343]
[1739028906131,0.00013,95863.0,95862.0,0.0322368]
[1739028906725,0.01210662,95867.0,95862.0,0.0322368]
[1739028906935,0.00015648,95870.0,95865.0,0.0322368]
[1739028907925,0.00039648,95870.0,95865.0,0.0322368]
[1739028908125,0.00039648,95870.0,95866.0,0.4888]
[1739028908928,0.00039648,95870.0,95866.0,0.5210368]
[1739028909520,0.3725035,95869.0,95866.0,0.4888]
[1739028909825,0.3725035,95869.0,95867.0,0.0322368]
[1739028910932,0.3725035,95869.0,95868.0,0.0322368]
[1739028911724,0.3608,95869.0,95868.0,0.2408469]
[1739028911924,0.00015648,95870.0,95868.0,0.2408469]
[1739028912226,0.12078,95873.0,95870.0,0.2086057]
[1739028912425,0.12078,95873.0,95872.0,0.2408382]
[1739028912617,0.1203,95873.0,95872.0,0.2408382]
[1739028912823,0.1203,95873.0,95872.0,0.8042768]
[1739028914131,0.1203,95873.0,95872.0,0.8843168]
[1739028914840,0.20102441,95882.0,95877.0,0.2085896]
[1739028915034,0.10059026,95882.0,95881.0,0.0322368]
[1739028915239,0.00015611,95882.0,95881.0,0.0322368]
[1739028915535,0.00015611,95882.0,95881.0,3.3930368]
[1739028916233,0.00015611,95882.0,95881.0,3.3940368]
[1739028918032,0.00015611,95882.0,95881.0,0.001]
[1739028918235,0.36095611,95882.0,95872.0,0.77304]
[1739028918541,0.5639103,95882.0,95872.0,0.77304]
[1739028918846,0.5639103,95882.0,95877.0,0.001]
[1739028919541,0.2085818,95881.0,95877.0,0.001]
[1739028919841,0.00208594,95880.0,95877.0,0.001]
[1739028920744,0.00208594,95880.0,95872.0,0.77304]
[1739028921047,0.21067164,95880.0,95877.0,0.002]
[1739028921242,0.21067164,95880.0,95872.0,0.48871055]
[1739028921243,0.2085991,95874.0,95872.0,0.48871055]
[1739028921447,0.58298609,95873.0,95852.0,0.6798]
[1739028921643,0.2086161,95866.0,95852.0,0.6798]
[1739028921843,0.36288626,95865.0,95852.0,0.319]
[1739028922146,0.00208628,95864.0,95852.0,0.319]
[1739028923147,0.00208628,95864.0,95859.0,0.00115648]
[1739028923346,0.00208628,95864.0,95859.0,0.00215648]
[1739028924250,0.00308628,95864.0,95859.0,0.00215648]
[1739028924438,0.21170598,95864.0,95859.0,0.00215648]
[1739028924749,0.22326337,95864.0,95859.0,0.00215648]
[1739028925047,0.22326337,95864.0,95859.0,0.0010874]
[1739028926245,0.01464367,95864.0,95859.0,0.0010874]
[1739028926846,0.11076053,95864.0,95859.0,0.0010874]
[1739028927348,0.11160053,95864.0,95859.0,0.0010874]
[1739028927947,0.3608,95861.0,95859.0,0.0010874]
[1739028928143,0.2201,95860.0,95859.0,0.0010874]
[1739028928351,0.2086414,95854.0,95848.0,0.77196]
[1739028928549,0.3608,95851.0,95848.0,0.77196]
[1739028929850,0.3608,95851.0,95848.0,0.77296]
[1739028930250,0.2008683,95858.0,95848.0,0.77296]
[1739028930559,0.001,95851.0,95848.0,0.77396]
[1739028932344,0.2038683,95858.0,95848.0,0.77396]
[1739028932549,0.00208644,95857.0,95848.0,0.77396]
[1739028932751,0.2201,95856.0,95848.0,0.77396]
[1739028932961,0.00208648,95855.0,95853.0,0.0322368]
[1739028933153,0.00208648,95855.0,95853.0,0.01538801]
[1739028934358,0.00208648,95855.0,95848.0,0.77396]
[1739028934553,0.00208648,95855.0,95853.0,0.001]
[1739028935659,0.00208648,95855.0,95853.0,0.002]
[1739028935961,0.00408648,95855.0,95853.0,0.002]
[1739028936964,0.00408648,95855.0,95853.0,0.001]
[1739028937557,0.00555648,95855.0,95853.0,0.002]
[1739028946676,0.00555648,95855.0,95853.0,0.00092895]
[1739028954574,0.00555648,95855.0,95853.0,0.00042957]
[1739028955781,0.00555648,95855.0,95853.0,3.00042957]
[1739028956475,0.31541622,95855.0,95853.0,3.00042957]
[1739028957581,0.31541622,95855.0,95853.0,0.00042957]
[1739028957779,0.31541622,95855.0,95853.0,0.20907187]
[1739028958881,0.05351622,95855.0,95853.0,0.56987187]
[1739028961488,0.05351622,95855.0,95853.0,3.56987187]
[1739028962886,0.00154648,95859.0,95854.0,0.01538801]
[1739028963088,0.00154648,95859.0,95858.0,0.01538801]
[1739028963388,0.00015648,95859.0,95858.0,0.01538801]
[1739028963591,0.00015648,95859.0,95858.0,3.01538801]
[1739028963984,0.00115648,95859.0,95858.0,3.01538801]
[1739028964391,0.00115648,95859.0,95858.0,3.01638801]
[1739028964789,0.00115648,95859.0,95858.0,3.01738801]
[1739028964987,0.00115648,95859.0,95858.0,0.01738801]
[1739028965193,0.00115648,95859.0,95858.0,0.18268801]
[1739028967292,0.00115648,95859.0,95858.0,3.18268801]
[1739028967991,0.00115648,95859.0,95858.0,3.1108802]
[1739028971793,0.00115648,95859.0,95853.0,0.3608]
[1739028972884,0.00015648,95859.0,95853.0,0.3618]
[1739028973088,0.00215648,95859.0,95853.0,0.3628]
[1739028974694,0.00452648,95859.0,95853.0,3.3628]
[1739028974893,0.00452648,95859.0,95857.0,0.2086332]
[1739028975487,0.10043415,95870.0,95868.0,0.208609]
[1739028975697,0.01164276,95872.0,95869.0,0.7131]
[1739028975893,0.50314213,95874.0,95870.0,0.2086049]
[1739028976091,0.50158212,95874.0,95870.0,0.2086049]
[1739028976300,0.40546603,95874.0,95870.0,0.2086049]
[1739028976494,0.40546603,95874.0,95869.0,0.7131]
[1739028976799,0.40546603,95874.0,95869.0,0.3608]
[1739028977194,0.40746603,95874.0,95870.0,0.001]
[1739028978190,0.3427126,95874.0,95870.0,0.001]
[1739028978392,0.3427126,95874.0,95870.0,0.002]
[1739028978591,0.35452154,95874.0,95870.0,0.002]
[1739028978987,0.35252154,95874.0,95870.0,0.001]
[1739028979908,0.35252154,95874.0,95870.0,0.002]
[1739028980287,0.2201,95873.0,95870.0,0.002]
[1739028982494,0.2201,95873.0,95870.0,0.001]
[1739028982694,0.2201,95873.0,95870.0,0.002]
[1739028982898,0.1734,95872.0,95870.0,0.002]
[1739028984896,0.1734,95872.0,95870.0,0.001]
[1739028985208,0.1734,95872.0,95870.0,0.002]
[1739028987507,0.2201,95873.0,95870.0,0.002]
[1739028988608,0.2201,95873.0,95870.0,0.001]
[1739028988998,0.2201,95873.0,95870.0,0.002]
[1739028989398,0.2201,95873.0,95872.0,0.3608]
[1739028990202,0.2201,95873.0,95870.0,0.002]
[1739028990406,0.2201,95873.0,95872.0,0.3608]
[1739028991005,0.2201,95873.0,95872.0,0.3618]
[1739028991404,0.2201,95873.0,95872.0,0.3628]
[1739028992209,0.57262154,95874.0,95872.0,0.5714005]
[1739028994105,0.3407126,95874.0,95872.0,0.5714005]
[1739028994312,0.0696126,95874.0,95872.0,0.5714005]
[1739028994513,0.0696126,95874.0,95872.0,0.5704005]
[1739028994808,0.0696126,95874.0,95872.0,0.5714005]
[1739028995216,0.09609269,95879.0,95878.0,0.2085883]
[1739028995415,0.09609269,95879.0,95878.0,0.5693883]
[1739028996615,0.10043415,95900.0,95878.0,0.3608]
[1739028996811,0.09609269,95904.0,95897.0,0.3608]
[1739028997015,0.09609269,95904.0,95898.0,0.1722]
[1739028997511,0.09609269,95904.0,95899.0,0.1698]
[1739028999112,0.09609269,95904.0,95899.0,0.1718]
[1739028999418,0.09609269,95904.0,95900.0,0.2085405]
[1739028999717,0.09609269,95904.0,95899.0,0.1718]
[1739028999909,0.00012,95905.0,95899.0,0.1718]
[1739029000412,0.00012,95905.0,95899.0,0.1708]
[1739029000615,0.00012,95905.0,95900.0,0.001]
[1739029001317,0.16472,95905.0,95899.0,0.1708]
[1739029001609,0.16472,95905.0,95900.0,0.001]
[1739029002009,0.16472,95905.0,95899.0,0.1698]
[1739029002209,0.16472,95905.0,95900.0,0.002]
[1739029003420,0.00012,95905.0,95900.0,0.002]
[1739029003611,0.00012,95905.0,95900.0,0.001]
[1739029004529,0.00012,95905.0,95901.0,0.3608]
[1739029006633,0.00012,95905.0,95901.0,0.3618]
[1739029006830,0.00012,95905.0,95901.0,0.3628]
[1739029009823,0.00012,95905.0,95901.0,0.6415]
[1739029015527,0.00012,95905.0,95901.0,0.2807]
[1739029016531,0.00012,95905.0,95904.0,0.3608]
[1739029016938,0.23190992,95906.0,95904.0,3.02841679]
[1739029017637,0.23190992,95906.0,95904.0,3.02941679]
[1739029018930,0.23190992,95906.0,95904.0,3.03041679]
[1739029020939,0.23190992,95906.0,95904.0,0.3628]
[1739029021147,0.23190992,95906.0,95904.0,0.57133]
[1739029021734,0.2201,95906.0,95904.0,0.57133]
[1739029021937,0.00015611,95911.0,95906.0,0.2085274]
[1739029022136,0.00015611,95911.0,95909.0,0.2085194]
[1739029025542,0.00015611,95911.0,95909.0,2.87813619]
[1739029028245,0.00015611,95911.0,95910.0,0.3608]
[1739029028745,0.00015611,95911.0,95910.0,3.02841679]
[1739029029348,0.00015611,95911.0,95910.0,3.02941679]
[1739029029643,0.00015611,95911.0,95910.0,3.03041679]
[1739029030236,0.00015611,95911.0,95910.0,0.3628]
[1739029037256,0.00015611,95911.0,95910.0,3.03041679]
[1739029039948,0.00015611,95911.0,95910.0,0.3628]
[1739029042352,0.00015611,95911.0,95910.0,3.03041679]
[1739029042957,0.00015611,95911.0,95910.0,0.3628]
[1739029043151,0.10043415,95930.0,95910.0,0.3628]
[1739029043354,0.2201,95929.0,95921.0,0.3608]
[1739029043557,0.2201,95930.0,95921.0,0.3608]
[1739029043753,0.23435557,95930.0,95922.0,0.0752]
[1739029044057,0.23435557,95930.0,95922.0,0.639791]
[1739029045264,0.23435557,95930.0,95922.0,0.641791]
[1739029045449,0.23435557,95930.0,95922.0,0.4333]
[1739029045653,0.23435557,95930.0,95922.0,0.0772]
[1739029049562,0.23435557,95930.0,95922.0,0.002]
[1739029049870,0.59724042,95930.0,95922.0,0.002]
[1739029050169,0.1742,95929.0,95922.0,0.002]
[1739029050660,0.2084876,95925.0,95922.0,0.002]
[1739029051267,0.2084876,95925.0,95922.0,0.001]
[1739029051565,0.2084876,95925.0,95922.0,0.002]
[1739029052772,0.2084876,95925.0,95922.0,0.001]
[1739029052960,0.2084876,95925.0,95922.0,0.002]
[1739029054571,0.2201,95924.0,95922.0,0.002]
[1739029055664,0.2201,95924.0,95922.0,0.001]
[1739029055972,0.2201,95924.0,95922.0,0.002]
[1739029056368,0.2201,95924.0,95922.0,0.001]
[1739029056671,0.2201,95924.0,95922.0,0.002]
[1739029058470,0.2201,95924.0,95922.0,2.66961679]
[1739029060469,0.23644042,95930.0,95922.0,2.66961679]
[1739029060770,0.23644042,95930.0,95922.0,0.002]
[1739029061678,0.3608,95928.0,95922.0,0.001]
[1739029061860,0.3608,95928.0,95922.0,0.002]
[1739029062676,0.1734,95927.0,95922.0,0.002]
[1739029064066,0.1734,95927.0,95922.0,0.001]
[1739029064276,0.1734,95927.0,95922.0,0.002]
[1739029066668,0.1734,95929.0,95922.0,0.002]
[1739029067075,0.23644042,95930.0,95927.0,0.3608]
[1739029067971,0.23644042,95930.0,95922.0,0.2094922]
[1739029068173,0.23644042,95930.0,95922.0,0.2104922]
[1739029068570,0.23644042,95930.0,95922.0,0.2094922]
[1739029068769,0.23644042,95930.0,95927.0,0.001]
[1739029069278,0.23644042,95930.0,95922.0,0.2104922]
[1739029069574,0.23644042,95930.0,95929.0,0.3608]
[1739029070583,0.23644042,95930.0,95927.0,0.001]
[1739029070774,0.23644042,95930.0,95929.0,0.001]
[1739029071571,0.23644042,95930.0,95929.0,0.002]
[1739029071777,0.23644042,95930.0,95929.0,0.3628]
[1739029072178,0.23644042,95930.0,95929.0,0.7243]
[1739029072381,0.01634042,95930.0,95929.0,0.7243]
[1739029074278,0.01634042,95930.0,95929.0,3.39191679]
[1739029074578,0.01634042,95930.0,95929.0,3.46623679]
[1739029074777,0.01634042,95930.0,95929.0,0.79862]
[1739029074971,4e-05,95938.0,95929.0,0.79862]
[1739029075784,4e-05,95938.0,95937.0,0.3608]
[1739029076373,0.01410547,95938.0,95937.0,0.3608]
[1739029076573,4e-05,95938.0,95937.0,0.3608]
[1739029076977,4e-05,95938.0,95937.0,0.3618]
[1739029077780,4e-05,95938.0,95937.0,0.3628]
[1739029082890,0.23445084,95947.0,95937.0,0.3628]
[1739029083090,0.23445084,95947.0,95946.0,0.3608]
[1739029084289,0.23445084,95947.0,95946.0,0.3618]
[1739029085387,0.23445084,95947.0,95946.0,3.02941679]
[1739029085774,0.23445084,95947.0,95946.0,3.03041679]
[1739029089487,0.23445084,95947.0,95946.0,2.66961679]
[1739029089682,0.23445084,95947.0,95946.0,0.002]
[1739029094995,0.23445084,95947.0,95946.0,0.001]
[1739029095300,0.23445084,95947.0,95946.0,0.002]
[1739029097801,0.40785084,95947.0,95946.0,0.002]
[1739029102698,0.1734,95941.0,95933.0,0.7714]
[1739029102901,0.3608,95939.0,95933.0,0.7714]
[1739029103104,0.1734,95935.0,95933.0,0.7714]
[1739029104101,0.1734,95935.0,95933.0,0.7724]
[1739029104594,0.1734,95935.0,95933.0,0.7734]
[1739029105094,0.2201,95934.0,95933.0,0.7734]
[1739029106400,0.2221,95934.0,95933.0,0.7734]
[1739029107402,0.2221,95934.0,95933.0,0.7724]
[1739029107705,0.2221,95934.0,95933.0,0.7734]
[1739029114007,0.2221,95934.0,95933.0,3.44101679]
[1739029117612,0.3955,95934.0,95933.0,3.44101679]
[1739029118308,0.3955,95934.0,95933.0,2.66961679]
[1739029118510,0.3955,95934.0,95933.0,0.002]
[1739029118713,0.7563,95934.0,95933.0,0.002]
[1739029121415,0.3955,95934.0,95933.0,0.002]
[1739029137223,0.3955,95934.0,95924.0,0.00015639]
[1739029137422,0.49593415,95934.0,95924.0,0.00015639]
[1739029137622,0.3608,95925.0,95924.0,0.00015639]
[1739029137826,0.3608,95925.0,95916.0,0.77304365]
[1739029138124,0.4031,95924.0,95916.0,0.77304365]
[1739029139717,0.2201,95924.0,95916.0,0.77304365]
[1739029140025,0.2221,95924.0,95916.0,0.77404365]
[1739029140527,0.23558372,95924.0,95916.0,0.77404365]
[1739029141117,0.23758372,95924.0,95916.0,0.77504365]
[1739029142528,0.23758372,95924.0,95916.0,0.00356365]
[1739029143023,0.23758372,95924.0,95916.0,2.67118044]
[1739029144229,0.23758372,95924.0,95916.0,0.00356365]
[1739029144534,0.2084932,95922.0,95916.0,0.00356365]
[1739029145220,0.23758372,95924.0,95916.0,0.00356365]
[1739029145627,0.002,95922.0,95916.0,0.00356365]
[1739029146419,0.1734,95923.0,95916.0,0.00356365]
[1739029146625,0.3608,95917.0,95916.0,0.00356365]
[1739029147618,0.5342,95917.0,95916.0,0.00356365]
[1739029148529,0.5352,95917.0,95916.0,0.00256365]
[1739029149124,0.1764,95917.0,95916.0,0.00356365]
[1739029149634,0.3965,95917.0,95916.0,0.00356365]
[1739029153041,0.2231,95917.0,95916.0,0.00356365]
[1739029157842,0.2231,95917.0,95916.0,2.67118044]
[1739029159544,0.2231,95917.0,95916.0,0.00356365]
[1739029160934,0.2231,95917.0,95916.0,0.36436365]
[1739029162949,0.2231,95917.0,95916.0,3.03198044]
[1739029163245,0.2231,95917.0,95916.0,0.36436365]
[1739029170442,0.2231,95917.0,95916.0,3.03198044]
[1739029178554,0.2231,95917.0,95916.0,2.66761679]
[1739029178854,0.2281,95917.0,95916.0,2.66861679]
[1739029179154,0.2351,95917.0,95916.0,2.66961679]
[1739029186557,0.2351,95917.0,95916.0,2.59785276]
[1739029190165,0.2351,95917.0,95916.0,0.002]
[1739029193964,0.33114963,95917.0,95916.0,0.002]
[1739029194457,0.33114963,95917.0,95916.0,0.001]
[1739029194664,0.33114963,95917.0,95916.0,0.00080854]
[1739029195767,0.33114963,95917.0,95910.0,0.00015639]
[1739029195970,0.2085123,95913.0,95910.0,0.00015639]
[1739029197271,0.2201,95912.0,95910.0,0.00015639]
[1739029198071,0.2201,95912.0,95910.0,0.00115639]
[1739029198681,0.2201,95912.0,95910.0,0.00215639]
[1739029199075,0.2281,95912.0,95910.0,0.00215639]
[1739029199872,0.2371,95912.0,95910.0,0.00215639]
[1739029201786,0.4456152,95912.0,95910.0,0.00215639]
[1739029201984,0.4456152,95912.0,95898.0,0.3734]
[1739029202187,0.2085426,95900.0,95898.0,0.3734]
[1739029202382,0.2201,95899.0,95898.0,0.3734]
[1739029202579,0.3935,95899.0,95898.0,0.3734]
[1739029203279,0.3935,95899.0,95898.0,0.30161459]
[1739029204282,0.3935,95899.0,95898.0,0.1838]
[1739029204893,0.48954963,95899.0,95898.0,0.1838]
[1739029205482,0.49354963,95899.0,95898.0,0.1838]
[1739029205689,0.49654963,95899.0,95898.0,0.1838]
[1739029206189,0.509299,95899.0,95898.0,0.1838]
[1739029210191,0.208549,95897.0,95890.0,0.189]
[1739029211390,0.211549,95897.0,95890.0,0.189]
[1739029211993,0.2201,95896.0,95890.0,0.189]
[1739029212592,0.1734,95895.0,95890.0,0.189]
[1739029214787,0.1774,95895.0,95890.0,0.189]
[1739029217595,0.1774,95895.0,95890.0,0.11721274]
[1739029217986,0.3975,95895.0,95890.0,0.11721274]
[1739029220189,0.49357978,95895.0,95890.0,0.11721274]
[1739029222401,0.606052,95895.0,95890.0,0.11721274]
[1739029222589,0.432652,95895.0,95890.0,0.11721274]
[1739029223695,0.430652,95895.0,95890.0,0.11721274]
[1739029224000,0.430652,95895.0,95890.0,0.11821274]
[1739029224001,0.439652,95895.0,95890.0,0.11821274]
[1739029224598,0.446652,95895.0,95890.0,0.11921274]
[1739029227709,0.54273219,95895.0,95890.0,0.11921274]
[1739029229805,0.2085601,95891.0,95875.0,0.1833]
[1739029230012,0.13175318,95885.0,95876.0,0.1777]
[1739029230199,0.208585,95880.0,95876.0,0.1777]
[1739029230399,0.428685,95880.0,95876.0,0.1777]
[1739029231911,0.432685,95880.0,95876.0,0.1777]
[1739029232798,0.437685,95880.0,95876.0,0.1777]
[1739029233814,0.53376519,95880.0,95876.0,0.1777]
[1739029234312,0.5459741,95880.0,95876.0,0.1777]
[1739029235718,0.3373891,95880.0,95876.0,0.1777]
[1739029239415,0.24130891,95880.0,95876.0,0.1777]
[1739029239615,0.24130891,95880.0,95876.0,2.77355276]
[1739029240010,0.24130891,95880.0,95876.0,0.1777]
[1739029241916,0.07665929,95879.0,95876.0,0.1777]
[1739029243014,0.08065929,95879.0,95876.0,0.1777]
[1739029243217,0.08065929,95879.0,95876.0,2.77355276]
[1739029243919,0.08465929,95879.0,95876.0,2.77355276]
[1739029245023,0.008,95879.0,95876.0,2.77355276]
[1739029247314,0.008,95879.0,95876.0,0.1777]
[1739029247716,0.2281,95879.0,95876.0,0.1777]
[1739029247911,0.3608,95877.0,95849.0,0.07268]
[1739029248114,0.3608,95866.0,95857.0,0.1751]
[1739029248415,0.5694155,95866.0,95857.0,0.1751]
[1739029248610,0.2086174,95865.0,95857.0,0.1751]
[1739029249219,0.2086209,95864.0,95862.0,0.2526761]
[1739029249425,0.2086209,95864.0,95862.0,0.22645636]
[1739029250017,0.2086209,95864.0,95862.0,0.22445636]
[1739029250719,0.2086209,95864.0,95862.0,0.22645636]
[1739029250930,0.29429819,95864.0,95862.0,0.22645636]
[1739029251225,0.09467729,95864.0,95862.0,0.22445636]
[1739029254223,0.07667729,95863.0,95862.0,2.82030912]
[1739029255322,0.08567729,95863.0,95862.0,2.82030912]
[1739029255625,0.09467729,95863.0,95862.0,2.81930912]
[1739029256011,0.09467729,95863.0,95862.0,0.58425636]
[1739029257224,0.10041541,95880.0,95869.0,0.2086064]
[1739029257421,0.10041541,95880.0,95871.0,0.3608]
[1739029257621,0.2201,95886.0,95871.0,0.3608]
[1739029257826,0.10041541,95881.0,95874.0,0.2085967]
[1739029258017,0.10041541,95881.0,95875.0,0.3668]
[1739029258222,0.10041541,95881.0,95880.0,0.3608]
[1739029258531,0.23263168,95886.0,95880.0,0.3608]
[1739029259116,0.009,95881.0,95880.0,0.3608]
[1739029259619,0.018,95881.0,95880.0,0.3618]
[1739029261028,0.018,95881.0,95880.0,0.570384]
[1739029261417,0.009,95881.0,95880.0,0.571384]
[1739029261616,0.2201,95904.0,95880.0,0.3628]
[1739029261828,0.10041541,95890.0,95886.0,0.2085687]
[1739029262031,0.10041541,95900.0,95889.0,0.3608]
[1739029262233,0.10041541,95900.0,95899.0,0.3608]
[1739029262423,0.01219717,95904.0,95899.0,0.3608]
[1739029262624,0.28491201,95905.0,95899.0,0.3608]
[1739029262831,0.009,95904.0,95899.0,0.3608]
[1739029263131,0.2175336,95904.0,95899.0,0.3608]
[1739029263330,0.009,95900.0,95899.0,0.3608]
[1739029264525,0.009,95900.0,95899.0,0.3618]
[1739029265114,0.009,95900.0,95899.0,0.001]
[1739029265319,0.2085392,95901.0,95899.0,0.001]
[1739029265629,0.2201,95900.0,95899.0,0.002]
[1739029266023,0.2211,95900.0,95899.0,0.002]
[1739029266224,0.2211,95900.0,95899.0,0.00078269]
[1739029266423,0.2211,95900.0,95899.0,0.00178269]
[1739029267125,0.2085547,95894.0,95892.0,0.00015639]
[1739029268124,0.2201,95893.0,95892.0,0.00015639]
[1739029268324,0.2201,95893.0,95871.0,0.3608]
[1739029268325,0.2085728,95886.0,95871.0,0.3608]
[1739029268526,0.3639,95885.0,95871.0,0.3608]
[1739029268737,0.3639,95885.0,95872.0,0.1725]
[1739029269640,0.3729,95885.0,95880.0,0.3618]
[1739029270137,0.38517987,95885.0,95880.0,0.3618]
[1739029270539,0.38517987,95885.0,95880.0,0.3553025]
[1739029270935,0.39417987,95885.0,95880.0,0.3563025]
[1739029271536,0.2201,95884.0,95880.0,0.3563025]
[1739029271837,0.2085774,95883.0,95880.0,0.27145029]
[1739029272741,0.2085774,95883.0,95880.0,0.002]
[1739029272943,0.3608,95881.0,95869.0,4e-05]
[1739029273641,0.2201,95880.0,95852.0,0.1839]
[1739029273846,0.3608,95863.0,95852.0,0.1839]
[1739029274040,0.10041541,95862.0,95852.0,0.1839]
[1739029274243,0.10041541,95862.0,95861.0,0.00010456]
[1739029274435,0.00015648,95867.0,95861.0,3.85e-05]
[1739029274743,0.00015648,95867.0,95862.0,0.001]
[1739029274944,0.3608,95863.0,95862.0,0.001]
[1739029275248,0.10041541,95862.0,95852.0,0.1839]
[1739029275445,0.10741541,95862.0,95861.0,0.001]
[1739029275640,0.007,95862.0,95861.0,0.001]
[1739029275841,0.2271,95862.0,95852.0,0.1839]
[1739029276043,0.32751541,95862.0,95846.0,0.1763]
[1739029276239,0.10041541,95855.0,95846.0,0.1763]
[1739029276450,0.5809,95854.0,95838.0,0.185]